bitfinex/quotes_SOLUSD_20230101
["timestamp","ask_amount","ask_price","bid_price","bid_amount"]
[1672573828126,40.0,9.9389,9.9325,24.4498]
[1672573828556,40.0,9.9387,9.9325,24.4498]
[1672573828963,40.0,9.9385,9.9325,24.4498]
[1672573829275,101.03674449,9.9385,9.9325,24.4498]
[1672573831379,159.65600896,9.9385,9.9325,24.4498]
[1672573832970,159.65600896,9.9385,9.9326,12.00940602]
[1672573833602,12.17427129,9.9384,9.9326,12.00940602]
[1672573834231,40.0,9.9382,9.9326,12.00940602]
[1672573834660,40.0,9.938,9.9326,12.00940602]
[1672573835091,40.0,9.9378,9.9326,12.00940602]
[1672573835409,40.0,9.9376,9.9326,12.00940602]
[1672573835932,40.0,9.9374,9.9326,12.00940602]
[1672573836345,40.0,9.9372,9.9326,12.00940602]
[1672573839718,101.03674449,9.9372,9.9326,12.00940602]
[1672573839914,40.0,9.937,9.9326,12.00940602]
[1672573840334,40.0,9.9368,9.9326,12.00940602]
[1672573840663,40.0,9.9366,9.9326,12.00940602]
[1672573841077,40.0,9.9364,9.9326,12.00940602]
[1672573841502,40.0,9.9362,9.9326,0.00940602]
[1672573841819,40.0,9.936,9.9326,12.00940602]
[1672573842027,95.56,9.9359,9.9326,12.00940602]
[1672573842226,40.0,9.9358,9.9326,12.00940602]
[1672573842441,40.0,9.9356,9.923,301.8]
[1672573842758,40.0,9.9354,9.9231,75.66]
[1672573842983,40.0,9.9352,9.9231,75.66]
[1672573843191,40.0,9.935,9.9232,165.7083]
[1672573843416,95.57,9.9349,9.9234,301.8]
[1672573843627,40.0,9.9348,9.9237,40.0]
[1672573843835,95.57,9.9347,9.9239,301.8]
[1672573844037,40.0,9.9346,9.9241,301.8]
[1672573844251,40.0,9.9344,9.9243,341.8]
[1672573844452,40.0,9.9342,9.9246,40.0]
[1672573844657,20.0,9.9341,9.9248,301.8]
[1672573844890,40.0,9.934,9.925,301.8]
[1672573845094,20.0,9.9339,9.9252,341.8]
[1672573845306,20.0,9.9339,9.9254,301.8]
[1672573845514,40.0,9.9338,9.9256,301.8]
[1672573845727,20.0,9.9337,9.9258,301.8]
[1672573845935,20.0,9.9337,9.926,301.8]
[1672573846130,20.0,9.9337,9.9261,75.64]
[1672573847178,20.0,9.9337,9.9252,40.0]
[1672573847393,20.0,9.9337,9.9254,301.8]
[1672573847603,20.0,9.9337,9.9253,75.64]
[1672573847604,40.0,9.9336,9.9256,301.8]
[1672573847813,20.0,9.9335,9.9258,301.8]
[1672573848038,20.0,9.9335,9.926,301.8]
[1672573848248,20.0,9.9335,9.9261,75.64]
[1672573848871,40.0,9.9333,9.9261,75.64]
[1672573849085,20.0,9.9332,9.9261,75.64]
[1672573849298,20.0,9.9332,9.9251,301.8]
[1672573849496,20.0,9.9332,9.9253,301.8]
[1672573849704,20.0,9.9332,9.9255,301.8]
[1672573849927,20.0,9.9332,9.9258,40.0]
[1672573850135,20.0,9.9332,9.926,301.8]
[1672573850338,20.0,9.9332,9.9261,75.64]
[1672573850554,40.0,9.933,9.9261,75.64]
[1672573851074,86.82287549,9.9329,9.9261,75.64]
[1672573851290,86.82287549,9.9329,9.9252,40.0]
[1672573851500,66.82287549,9.9328,9.9254,301.8]
[1672573851709,20.0,9.9327,9.9256,301.8]
[1672573851910,20.0,9.9327,9.9258,301.8]
[1672573852118,66.82287549,9.9326,9.926,301.8]
[1672573852332,66.82287549,9.9326,9.9261,75.64]
[1672573852333,20.0,9.9325,9.9261,75.64]
[1672573852653,66.82287549,9.9324,9.9261,75.64]
[1672573852859,20.0,9.9323,9.9261,75.64]
[1672573853275,20.0,9.9323,9.9249,75.65]
[1672573853276,106.82287549,9.9322,9.9249,75.65]
[1672573853501,20.0,9.9321,9.9249,75.65]
[1672573853697,86.82287549,9.9321,9.9249,75.65]
[1672573853912,66.82287549,9.932,9.9249,75.65]
[1672573856555,40.0,9.9319,9.9249,75.65]
[1672573856769,66.82287549,9.932,9.9249,75.65]
[1672573857089,12.17427129,9.9319,9.9249,75.65]
[1672573857500,40.0,9.9318,9.9249,75.65]
[1672573857922,52.17427129,9.9318,9.9249,75.65]
[1672573859291,40.0,9.9317,9.9249,75.65]
[1672573859700,66.82287549,9.9319,9.9249,75.65]
[1672573859701,12.17427129,9.9316,9.9249,75.65]
[1672573860880,40.0,9.9315,9.9249,75.65]
[1672573861396,12.17427129,9.9314,9.9249,75.65]
[1672573862654,40.0,9.9313,9.9249,75.65]
[1672573862843,40.0,9.9313,9.9239,75.65]
[1672573863053,78.99714678,9.9312,9.9239,75.65]
[1672573863473,118.99714678,9.9311,9.9239,75.65]
[1672573863917,40.0,9.9309,9.9239,75.65]
[1672573864322,40.0,9.9307,9.9239,75.65]
[1672573864647,66.82287549,9.9306,9.9239,75.65]
[1672573865275,40.0,9.9305,9.9239,75.65]
[1672573865709,40.0,9.9303,9.9239,75.65]
[1672573866123,66.82287549,9.9304,9.9239,75.65]
[1672573866544,40.0,9.9303,9.9239,75.65]
[1672573866749,52.17427129,9.9303,9.9239,75.65]
[1672573866972,137.61641125,9.9302,9.9188,301.8]
[1672573867161,137.61641125,9.9302,9.919,301.8]
[1672573867162,40.0,9.9301,9.919,301.8]
[1672573867378,177.61641125,9.9301,9.9192,301.8]
[1672573867601,177.61641125,9.9301,9.9189,40.0]
[1672573867602,40.0,9.9299,9.9193,75.69]
[1672573867819,40.0,9.9297,9.9191,40.0]
[1672573868128,40.0,9.9297,9.9193,40.0]
[1672573868317,40.0,9.9295,9.9194,75.69]
[1672573868528,40.0,9.9295,9.9195,40.0]
[1672573868739,40.0,9.9293,9.9197,40.0]
[1672573868972,40.0,9.9293,9.9198,75.69]
[1672573869170,40.0,9.9291,9.9199,40.0]
[1672573869385,40.0,9.9291,9.92,75.68]
[1672573869590,12.17427129,9.929,9.9198,40.0]
[1672573869809,12.17427129,9.929,9.92,40.0]
[1672573869999,12.17427129,9.929,9.9201,75.68]
[1672573870214,12.17427129,9.929,9.9202,40.0]
[1672573870424,12.17427129,9.929,9.9204,40.0]
[1672573870736,12.17427129,9.929,9.9206,40.0]
[1672573870952,12.17427129,9.929,9.9207,75.68]
[1672573871580,40.0,9.9288,9.9207,75.68]
[1672573871798,40.0,9.9288,6.7962,1.00551202]
[1672573871799,20.0,9.9287,9.9098,301.8]
[1672573872125,45.44948438,9.9219,9.9099,40.0]
[1672573872436,45.44948438,9.9219,9.9109,40.0]
[1672573872631,45.44948438,9.9219,9.9112,40.0]
[1672573872837,45.44948438,9.9219,9.9115,40.0]
[1672573873056,45.44948438,9.9219,9.9117,301.8]
[1672573873382,45.44948438,9.9219,9.9119,301.8]
[1672573873593,45.44948438,9.9219,9.9121,301.8]
[1672573873793,45.44948438,9.9219,9.9123,341.8]
[1672573874004,45.44948438,9.9219,9.9126,40.0]
[1672573874208,45.44948438,9.9219,9.9128,301.8]
[1672573874554,45.44948438,9.9219,9.913,301.8]
[1672573874736,45.44948438,9.9219,9.9132,301.8]
[1672573875064,45.44948438,9.9219,9.9135,40.0]
[1672573875258,45.44948438,9.9219,9.9138,40.0]
[1672573875472,45.44948438,9.9219,9.914,301.8]
[1672573875681,45.44948438,9.9219,9.9142,341.8]
[1672573875893,45.44948438,9.9219,9.9145,40.0]
[1672573876119,45.44948438,9.9219,9.9147,301.8]
[1672573876316,45.44948438,9.9219,9.9149,301.8]
[1672573876533,45.44948438,9.9219,9.9152,40.0]
[1672573876754,45.44948438,9.9219,9.9154,40.0]
[1672573876967,45.44948438,9.9219,9.9156,301.8]
[1672573877293,45.44948438,9.9219,9.9154,40.0]
[1672573877294,45.44948438,9.9219,9.9158,301.8]
[1672573877485,45.44948438,9.9219,9.916,341.8]
[1672573877697,45.44948438,9.9219,9.9163,40.0]
[1672573877919,45.44948438,9.9219,9.9165,301.8]
[1672573878128,45.44948438,9.9219,9.9167,301.8]
[1672573878336,45.44948438,9.9219,9.917,40.0]
[1672573878540,45.44948438,9.9219,9.9172,40.0]
[1672573878860,45.44948438,9.9219,9.9173,95.7]
[1672573879062,45.44948438,9.9219,9.9174,40.0]
[1672573879265,45.44948438,9.9219,9.9176,40.0]
[1672573879471,45.44948438,9.9219,9.9177,95.7]
[1672573879685,45.44948438,9.9219,9.9178,40.0]
[1672573879909,45.44948438,9.9219,9.9179,75.7]
[1672573880114,45.44948438,9.9219,9.918,40.0]
[1672573880323,45.44948438,9.9219,9.9181,75.7]
[1672573881171,45.44948438,9.9219,9.9179,75.7]
[1672573881489,45.44948438,9.9219,9.918,40.0]
[1672573881679,45.44948438,9.9219,9.9182,40.0]
[1672573881884,45.44948438,9.9219,9.9183,75.7]
[1672573882534,45.44948438,9.9219,9.9179,75.7]
[1672573882735,45.44948438,9.9219,9.9178,75.7]
[1672573884226,45.44948438,9.9219,9.9179,40.0]
[1672573884416,45.44948438,9.9219,9.918,75.7]
[1672573884626,45.44948438,9.9219,9.9181,40.0]
[1672573885988,45.44948438,9.9219,9.9178,75.7]
[1672573886634,45.44948438,9.9219,9.9179,40.0]
[1672573887038,45.44948438,9.9219,9.9178,75.7]
[1672573887249,45.44948438,9.9219,9.9161,75.71]
[1672573887584,45.44948438,9.9219,9.9156,301.8]
[1672573887896,45.44948438,9.9219,9.9158,301.8]
[1672573888122,45.44948438,9.9219,9.916,301.8]
[1672573888335,45.44948438,9.9219,9.9162,40.0]
[1672573888526,45.44948438,9.9219,9.9163,95.71]
[1672573888739,45.44948438,9.9219,9.9164,40.0]
[1672573888943,45.44948438,9.9219,9.9166,40.0]
[1672573889153,45.44948438,9.9219,9.9167,95.71]
[1672573889363,45.44948438,9.9219,9.9168,40.0]
[1672573889573,45.44948438,9.9219,9.917,40.0]
[1672573889795,45.44948438,9.9219,9.9172,40.0]
[1672573890007,45.44948438,9.9219,9.9173,95.7]
[1672573890214,45.44948438,9.9219,9.9174,40.0]
[1672573890430,45.44948438,9.9219,9.9176,40.0]
[1672573890631,45.44948438,9.9219,9.9178,40.0]
[1672573890843,45.44948438,9.9219,9.918,40.0]
[1672573891057,45.44948438,9.9219,9.9181,75.7]
[1672573891273,45.44948438,9.9219,9.9182,40.0]
[1672573891479,45.44948438,9.9219,9.9184,341.8]
[1672573891693,45.44948438,9.9219,9.9186,301.8]
[1672573891900,45.44948438,9.9219,9.9188,301.8]
[1672573892100,45.44948438,9.9219,9.9191,40.0]
[1672573892435,45.44948438,9.9219,9.9193,301.8]
[1672573892640,45.44948438,9.9219,9.9194,115.69]
[1672573893164,45.44948438,9.9219,9.9194,75.69]
[1672573893357,45.44948438,9.9219,9.9187,40.0]
[1672573894839,45.44948438,9.9219,9.9189,40.0]
[1672573895793,45.44948438,9.9219,9.9189,341.8]
[1672573899238,45.44948438,9.9219,9.9191,40.0]
[1672573903248,75.63,9.9274,9.9191,40.0]
[1672573903439,75.62,9.9278,9.9191,40.0]
[1672573903651,75.62,9.928,9.9193,40.0]
[1672573904087,40.0,9.9279,9.9193,40.0]
[1672573904298,40.0,9.9277,9.9195,40.0]
[1672573904488,75.63,9.9276,9.9195,40.0]
[1672573904911,40.0,9.9275,9.9197,40.0]
[1672573905142,40.0,9.9273,9.9197,40.0]
[1672573905352,75.63,9.9274,9.9197,40.0]
[1672573905554,40.0,9.9284,9.9197,40.0]
[1672573905757,75.62,9.9283,9.9199,40.0]
[1672573905966,40.0,9.9282,9.9199,40.0]
[1672573906176,40.0,9.928,9.9199,40.0]
[1672573906390,75.62,9.9279,9.92,24.3009]
[1672573907017,40.0,9.928,9.92,24.3009]
[1672573907238,75.62,9.9279,9.92,24.3009]
[1672573907455,40.0,9.9278,9.92,24.3009]
[1672573907648,75.63,9.9277,9.92,24.3009]
[1672573908403,40.0,9.9282,9.92,24.3009]
[1672573908592,40.0,9.928,9.92,24.3009]
[1672573908802,75.62,9.9279,9.9201,24.5069]
[1672573910599,40.0,9.9282,9.9201,24.5069]
[1672573910600,40.0,9.928,9.9201,24.5069]
[1672573910799,75.62,9.9279,9.9201,24.5069]
[1672573911010,40.0,9.9278,9.9201,24.5069]
[1672573911220,75.63,9.9277,9.9201,24.5069]
[1672573911431,40.0,9.9276,9.9125,40.0]
[1672573911641,40.0,9.9274,9.9127,40.0]
[1672573911861,40.0,9.9272,9.9129,40.0]
[1672573912083,75.63,9.9271,9.913,95.74]
[1672573912279,40.0,9.927,9.9131,341.8]
[1672573912498,40.0,9.927,9.9134,40.0]
[1672573912499,40.0,9.9268,9.9134,40.0]
[1672573912812,40.0,9.9266,9.9137,40.0]
[1672573913008,75.63,9.9265,9.914,40.0]
[1672573913219,75.63,9.9265,9.9142,301.8]
[1672573913427,75.63,9.9265,9.9141,95.73]
[1672573913428,75.63,9.9265,9.9144,301.8]
[1672573913749,75.63,9.9266,9.9146,341.8]
[1672573914072,75.63,9.9266,9.9149,40.0]
[1672573914262,69.59746583,9.9267,9.9151,341.8]
[1672573914477,75.63,9.9277,9.9154,40.0]
[1672573914699,75.62,9.9287,9.9157,40.0]
[1672573914914,75.62,9.9287,9.9159,301.8]
[1672573915125,40.0,9.9286,9.9161,301.8]
[1672573915442,75.62,9.9285,9.9164,40.0]
[1672573915627,40.0,9.9284,9.9166,341.8]
[1672573915842,75.62,9.9283,9.9169,40.0]
[1672573916170,145.21746583,9.9283,9.9172,40.0]
[1672573916388,145.21746583,9.9283,9.9175,40.0]
[1672573916702,109.59746583,9.9282,9.9178,40.0]
[1672573917008,75.62,9.9281,9.9181,40.0]
[1672573917224,145.21746583,9.9281,9.9184,40.0]
[1672573917424,69.59746583,9.928,9.9186,301.8]
[1672573917642,69.59746583,9.928,9.9188,301.8]
[1672573917851,115.62,9.9279,9.9189,40.0]
[1672573918260,69.59746583,9.9278,9.919,24.5658]
[1672573918481,115.63,9.9277,9.919,24.5658]
[1672573918892,69.59746583,9.9276,9.9191,24.5658]
[1672573919108,75.63,9.9275,9.9191,24.5658]
[1672573919423,69.59746583,9.9274,9.9191,24.5658]
[1672573919636,75.63,9.9273,9.9192,24.5658]
[1672573919951,69.59746583,9.9272,9.9192,24.5658]
[1672573920165,75.63,9.9271,9.9193,24.5658]
[1672573920571,40.0,9.927,9.9193,24.5658]
[1672573920992,145.22746583,9.9271,9.9193,24.5658]
[1672573923831,145.22746583,9.9271,9.9194,40.0]
[1672573933305,40.0,9.927,9.9193,24.5658]
[1672573933505,145.22746583,9.9271,9.9193,24.5658]
[1672573933831,40.0,9.927,9.9193,24.5658]
[1672573934147,145.22746583,9.9271,9.9193,24.5658]
[1672573934363,40.0,9.927,9.9193,24.5658]
[1672573935188,145.22746583,9.9271,9.9193,24.5658]
[1672573936798,145.22746583,9.9271,9.9194,40.0]
[1672573937302,40.0,9.927,9.9193,24.5658]
[1672573937509,69.59746583,9.9271,9.9193,24.5658]
[1672573937923,69.59746583,9.9269,9.9193,24.5658]
[1672573938126,69.59746583,9.9269,9.9194,23.1586]
[1672573938551,69.59746583,9.9269,9.9195,40.0]
[1672573943281,69.59746583,9.9269,9.9194,23.1586]
[1672573948331,40.0,9.9268,9.9194,23.1586]
[1672573948541,138.6181734,9.9269,9.9194,23.1586]
[1672573951701,40.0,9.9268,9.9194,23.1586]
[1672573951930,138.6181734,9.9269,9.9194,23.1586]
[1672573953399,69.59746583,9.9268,9.9194,23.1586]
[1672573955596,138.6181734,9.9268,9.9194,23.1586]
[1672573956019,69.59746583,9.9267,9.9194,23.1586]
[1672573957284,138.6181734,9.9267,9.9194,23.1586]
[1672573957727,138.6181734,9.9267,9.9195,40.0]
[1672573958547,69.59746583,9.9266,9.9195,40.0]
[1672573963283,69.59746583,9.9266,9.9194,23.1586]
[1672573965598,69.59746583,9.9266,9.9195,40.0]
[1672573970028,56.59746583,9.9266,9.9195,40.0]
[1672573978836,125.6181734,9.9266,9.9195,40.0]
[1672573983808,125.6181734,9.9266,9.9194,23.1586]
[1672573985375,184.10079916,9.9265,9.9194,23.1586]
[1672573985584,184.10079916,9.9265,9.9178,301.8]
[1672573985797,137.49150673,9.9264,9.9179,40.0]
[1672573986015,75.64,9.9263,9.9179,40.0]
[1672573986219,40.0,9.9289,9.918,75.7]
[1672573986220,75.62,9.9282,9.918,75.7]
[1672573986437,75.62,9.9287,9.9181,40.0]
[1672573986620,68.47079916,9.9281,9.9182,75.7]
[1672573986846,40.0,9.9279,9.9183,40.0]
[1672573987061,75.62,9.9278,9.9183,86.5299]
[1672573987383,40.0,9.9277,9.9183,86.5299]
[1672573987591,75.63,9.9276,9.9185,40.0]
[1672573987904,75.63,9.9277,9.9185,40.0]
[1672573988088,75.63,9.9277,9.9186,22.8207]
[1672573988299,75.63,9.9277,9.9187,40.0]
[1672573988726,75.63,9.9277,9.9189,40.0]
[1672573989473,75.63,9.9277,9.9191,40.0]
[1672573989878,75.63,9.9277,9.9193,40.0]
[1672573990516,75.63,9.9277,9.9194,22.7238]
[1672573991345,75.63,9.9277,9.9195,22.7238]
[1672573991992,75.63,9.9277,9.9196,24.5782]
[1672573992728,75.63,9.9277,9.9197,24.5782]
[1672573993146,75.63,9.9277,9.9198,24.5782]
[1672573993359,137.49150673,9.9276,9.9198,24.5782]
[1672573993560,75.63,9.9275,9.9198,24.5782]
[1672573993765,144.65070757,9.9275,9.9198,24.5782]
[1672573993976,69.02070757,9.9274,9.9198,24.5782]
[1672573994188,75.63,9.9273,9.9198,24.5782]
[1672573994813,75.63,9.9273,9.9199,40.0]
[1672573997349,137.49150673,9.9274,9.9199,40.0]
[1672573998173,75.63,9.9273,9.9199,40.0]
[1672574003335,137.49150673,9.9274,9.9199,40.0]
[1672574017436,137.49150673,9.9274,9.9199,341.8]
[1672574023639,69.02070757,9.9274,9.9199,341.8]
[1672574023952,75.62,9.9289,9.9199,341.8]
[1672574024776,75.62,9.9289,9.9201,40.0]
[1672574025526,75.62,9.9289,9.9203,40.0]
[1672574025952,75.62,9.9289,9.9205,40.0]
[1672574026456,75.62,9.9289,9.9207,40.0]
[1672574026981,75.62,9.9289,9.9209,40.0]
[1672574027610,75.62,9.9289,9.9211,40.0]
[1672574028346,75.62,9.9289,9.9213,40.0]
[1672574029522,69.02070757,9.9295,9.9213,40.0]
[1672574032778,69.02070757,9.9295,9.9216,40.0]
[1672574032972,69.02070757,9.9295,9.9219,40.0]
[1672574033612,69.02070757,9.9295,9.9221,40.0]
[1672574035512,69.02070757,9.9295,9.9222,75.67]
[1672574035706,23.0365,9.9305,9.9223,341.8]
[1672574035910,23.0365,9.9305,9.9225,341.8]
[1672574036124,23.0365,9.9305,9.9228,40.0]
[1672574036334,23.0365,9.9305,9.9231,40.0]
[1672574036545,23.0365,9.9305,9.9233,301.8]
[1672574036756,23.0365,9.9305,9.9235,301.8]
[1672574036966,23.0365,9.9305,9.9238,40.0]
[1672574037176,23.0365,9.9305,9.924,301.8]
[1672574037397,23.0365,9.9305,9.9242,301.8]
[1672574037610,23.0365,9.9305,9.9244,341.8]
[1672574037931,23.0365,9.9305,9.9247,40.0]
[1672574038122,23.0365,9.9305,9.9249,341.8]
[1672574038331,23.0365,9.9305,9.9251,301.8]
[1672574038539,23.0365,9.9305,9.9252,40.0]
[1672574050634,23.0365,9.9305,9.9246,301.8]
[1672574051059,23.0365,9.9305,9.9247,40.0]
[1672574051265,23.0365,9.9305,9.9241,40.0]
[1672574053281,23.0365,9.9305,9.9236,40.0]
[1672574054426,23.0365,9.9305,9.9236,341.8]
[1672574054833,23.0365,9.9305,9.9236,301.8]
[1672574055045,23.0365,9.9305,9.9237,40.0]
[1672574067677,23.0365,9.9305,9.924,40.0]
[1672574068513,23.0365,9.9305,9.9243,40.0]
[1672574070105,23.0365,9.9305,9.9245,40.0]
[1672574071344,12.18788999,9.9331,9.9245,40.0]
[1672574071570,75.54,9.9392,9.9248,40.0]
[1672574071765,40.0,9.9397,9.925,301.8]
[1672574071998,40.0,9.9397,9.9252,341.8]
[1672574071999,40.0,9.9395,9.9252,341.8]
[1672574072191,40.0,9.9393,9.9255,40.0]
[1672574072398,75.54,9.9392,9.9258,40.0]
[1672574072608,40.0,9.9391,9.926,301.8]
[1672574072824,40.0,9.9389,9.9263,40.0]
[1672574073044,40.0,9.9387,9.9266,40.0]
[1672574073239,75.54,9.9386,9.9269,40.0]
[1672574073571,40.0,9.9386,9.9272,40.0]
[1672574073773,133.98876179,9.9388,9.9274,301.8]
[1672574073774,75.54,9.9385,9.9274,301.8]
[1672574074090,75.54,9.9387,9.9277,40.0]
[1672574074306,40.0,9.9387,9.9279,301.8]
[1672574074530,40.0,9.9385,9.928,115.62]
[1672574074836,75.54,9.9384,9.9282,40.0]
[1672574075029,75.54,9.9384,9.9285,40.0]
[1672574075241,40.0,9.9385,9.9288,40.0]
[1672574075459,75.54,9.9384,9.929,301.8]
[1672574075670,75.54,9.9386,9.9292,301.8]
[1672574075880,75.54,9.9386,9.9295,40.0]
[1672574076078,75.54,9.9386,9.9297,40.0]
[1672574076609,133.98876179,9.9388,9.9297,40.0]
[1672574076610,75.54,9.9387,9.9297,40.0]
[1672574076824,75.54,9.9387,9.9299,40.0]
[1672574077444,75.54,9.9387,9.93,24.3585]
[1672574077972,75.54,9.9387,9.9301,40.0]
[1672574078294,75.54,9.9387,9.9303,40.0]
[1672574078717,75.54,9.9387,9.9305,40.0]
[1672574079248,133.98876179,9.9388,9.9305,40.0]
[1672574079448,133.98876179,9.9388,9.9306,24.3585]
[1672574080083,133.98876179,9.9388,9.9307,24.3256]
[1672574080505,40.0,9.9387,9.9307,24.3256]
[1672574080713,40.0,9.9387,9.9303,40.0]
[1672574080714,75.54,9.9386,9.9308,24.3256]
[1672574080923,40.0,9.9387,9.9308,24.3256]
[1672574081245,133.98876179,9.9388,9.9308,24.3256]
[1672574082068,133.98876179,9.9388,9.9305,40.0]
[1672574082069,133.98876179,9.9388,9.9309,24.3256]
[1672574087883,133.98876179,9.9388,9.931,40.0]
[1672574088498,133.98876179,9.9388,9.9312,40.0]
[1672574089139,69.02070757,9.9388,9.9312,40.0]
[1672574089882,23.9211,9.9392,9.9312,40.0]
[1672574090597,75.54,9.9391,9.9313,22.8163]
[1672574093449,75.54,9.9391,9.9314,40.0]
[1672574093979,23.9211,9.9392,9.9314,40.0]
[1672574094606,23.9211,9.9392,9.9316,40.0]
[1672574104471,23.9211,9.9392,9.9319,40.0]
[1672574107303,23.9211,9.9392,9.932,301.8]
[1672574107513,23.9211,9.9392,9.9321,40.0]
[1672574111533,23.9211,9.9392,9.9324,40.0]
[1672574113940,23.9211,9.9392,9.9326,40.0]
[1672574114883,23.9211,9.9392,9.9326,341.8]
[1672574116143,23.9211,9.9392,9.9329,40.0]
[1672574120462,23.9211,9.9392,9.9328,301.8]
[1672574120672,23.9211,9.9392,9.933,301.8]
[1672574120897,23.9211,9.9392,9.9331,40.0]
[1672574122043,23.9211,9.9392,9.9331,341.8]
[1672574122455,23.9211,9.9392,9.9331,301.8]
[1672574122679,23.9211,9.9392,9.9332,40.0]
[1672574123105,23.9211,9.9392,9.9329,301.8]
[1672574123317,23.9211,9.9392,9.9332,40.0]
[1672574125521,23.9211,9.9392,9.9334,40.0]
[1672574127188,23.9211,9.9392,9.9333,301.8]
[1672574127508,23.9211,9.9392,9.9334,40.0]
[1672574127832,23.9211,9.9392,9.9336,341.8]
[1672574128025,23.9211,9.9392,9.9336,301.8]
[1672574129498,23.9211,9.9392,9.9332,40.0]
[1672574129722,23.9211,9.9392,9.9334,301.8]
[1672574129924,23.9211,9.9392,9.9332,40.0]
[1672574129925,23.9211,9.9392,9.9336,301.8]
[1672574130468,23.9211,9.9392,9.9338,301.8]
[1672574131417,23.9211,9.9392,9.9334,301.8]
[1672574131615,23.9211,9.9392,9.9336,301.8]
[1672574131814,23.9211,9.9392,9.9338,301.8]
[1672574132892,23.9211,9.9392,9.934,301.8]
[1672574133822,23.9211,9.9392,9.9339,16.66570671]
[1672574135205,23.9211,9.9392,9.9336,301.8]
[1672574135604,23.9211,9.9392,9.9328,301.8]
[1672574135824,23.9211,9.9392,9.933,301.8]
[1672574136028,23.9211,9.9392,9.9332,301.8]
[1672574136254,23.9211,9.9392,9.9334,301.8]
[1672574136465,23.9211,9.9392,9.9337,40.0]
[1672574136665,23.9211,9.9392,9.9336,301.8]
[1672574137510,23.9211,9.9392,9.9329,40.0]
[1672574137719,23.9211,9.9392,9.9331,301.8]
[1672574137937,23.9211,9.9392,9.9333,301.8]
[1672574138147,23.9211,9.9392,9.9335,301.8]
[1672574138361,23.9211,9.9392,9.9337,301.8]
[1672574139285,23.9211,9.9392,9.9338,40.0]
[1672574140136,23.9211,9.9392,9.9338,301.8]
[1672574140967,23.9211,9.9392,9.9339,16.66570671]
[1672574143190,23.9211,9.9392,9.9337,301.8]
[1672574144138,23.9211,9.9392,9.9329,40.0]
[1672574144326,23.9211,9.9392,9.9331,301.8]
[1672574144544,23.9211,9.9392,9.9333,301.8]
[1672574144752,23.9211,9.9392,9.9335,301.8]
[1672574144960,23.9211,9.9392,9.9337,301.8]
[1672574145190,23.9211,9.9392,9.9339,301.8]
[1672574146229,23.9211,9.9392,9.9332,301.8]
[1672574146449,23.9211,9.9392,9.9334,301.8]
[1672574146657,23.9211,9.9392,9.9336,301.8]
[1672574146869,23.9211,9.9392,9.9338,301.8]
[1672574147183,23.9211,9.9392,9.934,301.8]
[1672574148123,23.9211,9.9392,9.9331,75.58]
[1672574148124,23.9211,9.9392,9.9332,301.8]
[1672574148344,23.9211,9.9392,9.9334,301.8]
[1672574148532,23.9211,9.9392,9.9336,301.8]
[1672574148744,23.9211,9.9392,9.9338,301.8]
[1672574148967,23.9211,9.9392,9.934,301.8]
[1672574149520,23.9211,9.9392,9.9342,301.8]
[1672574150441,23.9211,9.9392,9.9336,40.0]
[1672574150633,23.9211,9.9392,9.9338,301.8]
[1672574150848,23.9211,9.9392,9.934,301.8]
[1672574151063,23.9211,9.9392,9.9342,301.8]
[1672574152103,23.9211,9.9392,9.9336,40.0]
[1672574152320,23.9211,9.9392,9.9338,301.8]
[1672574152535,23.9211,9.9392,9.934,301.8]
[1672574152746,23.9211,9.9392,9.9342,301.8]
[1672574153898,23.9211,9.9392,9.9344,301.8]
[1672574154872,23.9211,9.9392,9.9339,301.8]
[1672574155067,23.9211,9.9392,9.9341,301.8]
[1672574155278,23.9211,9.9392,9.9343,301.8]
[1672574156216,23.9211,9.9392,9.9339,301.8]
[1672574156425,23.9211,9.9392,9.9341,301.8]
[1672574156647,23.9211,9.9392,9.9343,301.8]
[1672574157055,23.9211,9.9392,9.9345,301.8]
[1672574158104,23.9211,9.9392,9.9341,75.58]
[1672574158105,23.9211,9.9392,9.9342,301.8]
[1672574158315,23.9211,9.9392,9.9344,301.8]
[1672574159375,23.9211,9.9392,9.9341,75.58]
[1672574159376,23.9211,9.9392,9.9342,301.8]
[1672574159581,23.9211,9.9392,9.9344,301.8]
[1672574159792,23.9211,9.9392,9.9346,301.8]
[1672574160745,23.9211,9.9392,9.9342,301.8]